[Event "Early-Titled-Tuesday-Blitz-September-12-2023"]
[Site "Chess.com"]
[Date "2023.09.12"]
[Round "8"]
[White "falzehope0"]
[Black "The_Princess_Moon"]
[Result "0-1"]
[WhiteElo "2417"]
[BlackElo "2276"]
[TimeControl "180+1"]
[EndTime "9:29:54 PDT"]
[Termination "The_Princess_Moon won by checkmate"]

1. d4 {[%clk 0:02:49.6]} 1... c5 {[%clk 0:02:57.8]} 2. e3 {[%clk 0:02:44.8]}
2... Nf6 {[%clk 0:02:55]} 3. c3 {[%clk 0:02:44.6]} 3... cxd4 {[%clk 0:02:47.5]}
4. exd4 {[%clk 0:02:44.4]} 4... d6 {[%clk 0:02:47.6]} 5. Bd3 {[%clk 0:02:44.2]}
5... g6 {[%clk 0:02:48.3]} 6. f4 {[%clk 0:02:44]} 6... Bg7 {[%clk 0:02:49.2]} 7.
Nf3 {[%clk 0:02:41.4]} 7... O-O {[%clk 0:02:50.1]} 8. O-O {[%clk 0:02:41.1]}
8... Nc6 {[%clk 0:02:48.9]} 9. Qe1 {[%clk 0:02:40.6]} 9... Rb8 {[%clk
0:02:38.8]} 10. Nbd2 {[%clk 0:02:35.9]} 10... b5 {[%clk 0:02:37.7]} 11. a3
{[%clk 0:02:35.9]} 11... a5 {[%clk 0:02:36.4]} 12. b4 {[%clk 0:02:25.6]} 12...
axb4 {[%clk 0:02:29.4]} 13. axb4 {[%clk 0:02:25.2]} 13... Bb7 {[%clk 0:02:25.9]}
14. f5 {[%clk 0:02:24.2]} 14... Qb6 {[%clk 0:02:21.2]} 15. Qh4 {[%clk
0:02:21.6]} 15... Ra8 {[%clk 0:01:49.3]} 16. Rxa8 {[%clk 0:02:19.9]} 16... Rxa8
{[%clk 0:01:47.3]} 17. fxg6 {[%clk 0:02:18.8]} 17... hxg6 {[%clk 0:01:45.9]} 18.
Ng5 {[%clk 0:02:18.2]} 18... Nb8 {[%clk 0:01:11]} 19. Nde4 {[%clk 0:02:15.5]}
19... Bxe4 {[%clk 0:01:07.7]} 20. Bxe4 {[%clk 0:02:12.5]} 20... Ra1 {[%clk
0:00:53.2]} 21. Bd5 {[%clk 0:02:01.8]} 21... e6 {[%clk 0:00:43.2]} 22. Bb3
{[%clk 0:01:39.5]} 22... Nbd7 {[%clk 0:00:42.1]} 23. h3 {[%clk 0:01:31.3]} 23...
d5 {[%clk 0:00:41.4]} 24. Kh2 {[%clk 0:01:30.1]} 24... Qc7+ {[%clk 0:00:31.9]}
25. Bf4 {[%clk 0:01:28]} 25... Qxc3 {[%clk 0:00:32]} 26. Rxa1 {[%clk 0:01:12.2]}
26... Qxa1 {[%clk 0:00:31.1]} 27. Be5 {[%clk 0:01:11.5]} 27... Qb2 {[%clk
0:00:27.5]} 28. Bd1 {[%clk 0:00:40.8]} 28... Qxb4 {[%clk 0:00:25.7]} 29. Be2
{[%clk 0:00:40.4]} 29... Nxe5 {[%clk 0:00:19.1]} 30. Qf4 {[%clk 0:00:40]} 30...
Ned7 {[%clk 0:00:14]} 31. Qc7 {[%clk 0:00:39.6]} 31... Qd2 {[%clk 0:00:11.2]}
32. Bxb5 {[%clk 0:00:37.9]} 32... Nf8 {[%clk 0:00:10.9]} 33. Qxf7+ {[%clk
0:00:34.8]} 33... Kh8 {[%clk 0:00:11.1]} 34. Nf3 {[%clk 0:00:29.9]} 34... Qf4+
{[%clk 0:00:10.9]} 35. Kh1 {[%clk 0:00:29.2]} 35... Qc1+ {[%clk 0:00:10.2]} 36.
Kh2 {[%clk 0:00:27.5]} 36... Qf4+ {[%clk 0:00:09.4]} 37. Kg1 {[%clk 0:00:27.9]}
37... Qe3+ {[%clk 0:00:09]} 38. Kh1 {[%clk 0:00:27.6]} 38... Ne4 {[%clk
0:00:08]} 39. Bd7 {[%clk 0:00:16]} 39... Ng3+ {[%clk 0:00:06.6]} 40. Kh2 {[%clk
0:00:15.7]} 40... Nf1+ {[%clk 0:00:06.5]} 41. Kh1 {[%clk 0:00:16]} 41... Ng3+
{[%clk 0:00:04.9]} 42. Kh2 {[%clk 0:00:16]} 42... Nf5 {[%clk 0:00:05]} 43. Bb5
{[%clk 0:00:12.6]} 43... Qf4+ {[%clk 0:00:05]} 44. Kh1 {[%clk 0:00:12.2]} 44...
Ng3+ {[%clk 0:00:05.3]} 45. Kh2 {[%clk 0:00:12.3]} 45... Qxf7 {[%clk 0:00:05.7]}
46. Kxg3 {[%clk 0:00:11.4]} 46... Bh6 {[%clk 0:00:06.3]} 47. Kf2 {[%clk
0:00:11.4]} 47... Qf4 {[%clk 0:00:06.8]} 48. Kf1 {[%clk 0:00:10.9]} 48... e5
{[%clk 0:00:07.2]} 49. dxe5 {[%clk 0:00:10.8]} 49... Qc1+ {[%clk 0:00:07.9]} 50.
Kf2 {[%clk 0:00:10.7]} 50... Ne6 {[%clk 0:00:08.4]} 51. Bd7 {[%clk 0:00:10.2]}
51... Be3+ {[%clk 0:00:09.3]} 52. Kg3 {[%clk 0:00:09.8]} 52... Nd4 {[%clk
0:00:09.7]} 53. Kg4 {[%clk 0:00:10]} 53... Nxf3 {[%clk 0:00:10]} 54. Kxf3 {[%clk
0:00:09]} 54... d4 {[%clk 0:00:10.9]} 55. Ke4 {[%clk 0:00:09]} 55... Bg5 {[%clk
0:00:11.8]} 56. e6 {[%clk 0:00:09.3]} 56... d3 {[%clk 0:00:12]} 57. Kxd3 {[%clk
0:00:09.7]} 57... Qd2+ {[%clk 0:00:12.2]} 58. Ke4 {[%clk 0:00:10.1]} 58... Qd6
{[%clk 0:00:12.9]} 59. Kf3 {[%clk 0:00:09.9]} 59... Qe7 {[%clk 0:00:13.8]} 60.
g3 {[%clk 0:00:10]} 60... Bf6 {[%clk 0:00:14.7]} 61. h4 {[%clk 0:00:09.9]} 61...
Kg7 {[%clk 0:00:15.6]} 62. Kg4 {[%clk 0:00:10.4]} 62... Qd6 {[%clk 0:00:15.2]}
63. Kh3 {[%clk 0:00:10.5]} 63... Be5 {[%clk 0:00:15]} 64. Kg4 {[%clk 0:00:10.5]}
64... Bxg3 {[%clk 0:00:15.1]} 65. Kf3 {[%clk 0:00:10.9]} 65... Bxh4 {[%clk
0:00:15.2]} 66. Ke4 {[%clk 0:00:11.1]} 66... Be7 {[%clk 0:00:16.1]} 67. Ke3
{[%clk 0:00:11.4]} 67... Kf6 {[%clk 0:00:16.3]} 68. Kf3 {[%clk 0:00:11.8]} 68...
Ke5 {[%clk 0:00:17.2]} 69. Ke3 {[%clk 0:00:12.2]} 69... g5 {[%clk 0:00:17.6]}
70. Kf3 {[%clk 0:00:12.7]} 70... Qd4 {[%clk 0:00:18.1]} 71. Ke2 {[%clk
0:00:12.4]} 71... Qf4 {[%clk 0:00:19]} 72. Kd3 {[%clk 0:00:12.1]} 72... g4
{[%clk 0:00:19.9]} 73. Ke2 {[%clk 0:00:11.7]} 73... Qf3+ {[%clk 0:00:19.8]} 74.
Ke1 {[%clk 0:00:11.1]} 74... g3 {[%clk 0:00:20.7]} 75. Bb5 {[%clk 0:00:09.9]}
75... Qf2+ {[%clk 0:00:21.6]} 76. Kd1 {[%clk 0:00:09.7]} 76... g2 {[%clk
0:00:21.3]} 77. Be2 {[%clk 0:00:09.6]} 77... g1=Q+ {[%clk 0:00:20.4]} 78. Kd2
{[%clk 0:00:10.2]} 78... Qge1+ {[%clk 0:00:20.2]} 79. Kd3 {[%clk 0:00:08.8]}
79... Qfxe2# {[%clk 0:00:20.5]} 0-1

[Event "Early-Titled-Tuesday-Blitz-September-12-2023"]
[Site "Chess.com"]
[Date "2023.09.12"]
[Round "8"]
[White "Lennis93"]
[Black "masnyszachistaaa"]
[Result "0-1"]
[WhiteElo "2715"]
[BlackElo "2561"]
[TimeControl "180+1"]
[EndTime "9:29:55 PDT"]
[Termination "masnyszachistaaa won by checkmate"]

1. g3 {[%clk 0:03:00.8]} 1... e5 {[%clk 0:02:52.3]} 2. Bg2 {[%clk 0:03:01.2]}
2... d5 {[%clk 0:02:52.5]} 3. c4 {[%clk 0:03:01.5]} 3... dxc4 {[%clk 0:02:50.2]}
4. Na3 {[%clk 0:03:00.6]} 4... Nf6 {[%clk 0:02:43.5]} 5. Nxc4 {[%clk 0:02:58.1]}
5... Bd6 {[%clk 0:02:43.5]} 6. Nf3 {[%clk 0:02:56]} 6... Nc6 {[%clk 0:02:43.2]}
7. O-O {[%clk 0:02:55.8]} 7... O-O {[%clk 0:02:43.2]} 8. d4 {[%clk 0:02:55.7]}
8... e4 {[%clk 0:02:21.8]} 9. Nfd2 {[%clk 0:02:55.3]} 9... Re8 {[%clk
0:02:20.4]} 10. d5 {[%clk 0:02:49.9]} 10... Nb4 {[%clk 0:02:06.2]} 11. a3 {[%clk
0:02:49.1]} 11... Na6 {[%clk 0:02:04.7]} 12. Nxd6 {[%clk 0:02:45.6]} 12... cxd6
{[%clk 0:02:02.6]} 13. Nc4 {[%clk 0:02:45]} 13... Bg4 {[%clk 0:01:53.9]} 14. h3
{[%clk 0:02:44.7]} 14... Bh5 {[%clk 0:01:53.9]} 15. Bf4 {[%clk 0:02:44.6]} 15...
Nc7 {[%clk 0:01:19.8]} 16. Nxd6 {[%clk 0:02:40]} 16... Re7 {[%clk 0:01:17.5]}
17. Nxb7 {[%clk 0:02:39.6]} 17... Qxd5 {[%clk 0:01:16.9]} 18. Nd6 {[%clk
0:02:16.6]} 18... Rd7 {[%clk 0:00:55.8]} 19. g4 {[%clk 0:02:12.3]} 19... Bg6
{[%clk 0:00:54.3]} 20. Qxd5 {[%clk 0:02:03.2]} 20... Ncxd5 {[%clk 0:00:55.2]}
21. Bg3 {[%clk 0:02:03.7]} 21... Rad8 {[%clk 0:00:43.7]} 22. g5 {[%clk
0:01:55.8]} 22... Nh5 {[%clk 0:00:40.6]} 23. Nxe4 {[%clk 0:01:56]} 23... Nxg3
{[%clk 0:00:31.4]} 24. Nxg3 {[%clk 0:01:52.3]} 24... Nf4 {[%clk 0:00:31.3]} 25.
h4 {[%clk 0:01:46.8]} 25... Rd2 {[%clk 0:00:28.6]} 26. Bf3 {[%clk 0:01:46.8]}
26... Rxb2 {[%clk 0:00:26]} 27. Rfd1 {[%clk 0:01:45.3]} 27... Rdb8 {[%clk
0:00:11.2]} 28. Rd4 {[%clk 0:01:44.6]} 28... Ne6 {[%clk 0:00:09.8]} 29. Rd7
{[%clk 0:01:44.8]} 29... a5 {[%clk 0:00:08.9]} 30. h5 {[%clk 0:01:43.9]} 30...
Bc2 {[%clk 0:00:08.6]} 31. Rd5 {[%clk 0:01:29]} 31... Bb1 {[%clk 0:00:07.6]} 32.
Rxa5 {[%clk 0:01:26.6]} 32... Nd4 {[%clk 0:00:07.5]} 33. Bd5 {[%clk 0:01:08.7]}
33... Nc2 {[%clk 0:00:04.9]} 34. Rxb1 {[%clk 0:01:04.2]} 34... Rxb1+ {[%clk
0:00:05.8]} 35. Kg2 {[%clk 0:01:04.6]} 35... R1b5 {[%clk 0:00:06]} 36. Rxb5
{[%clk 0:00:38]} 36... Rxb5 {[%clk 0:00:06.9]} 37. e4 {[%clk 0:00:37.9]} 37...
Nxa3 {[%clk 0:00:06.4]} 38. g6 {[%clk 0:00:38.6]} 38... hxg6 {[%clk 0:00:05.2]}
39. hxg6 {[%clk 0:00:39.5]} 39... Kf8 {[%clk 0:00:05.4]} 40. gxf7 {[%clk
0:00:39.9]} 40... Rc5 {[%clk 0:00:02.8]} 41. Nf5 {[%clk 0:00:40.4]} 41... Nb5
{[%clk 0:00:02.9]} 42. Kg3 {[%clk 0:00:37.9]} 42... Nc7 {[%clk 0:00:03]} 43. Ba2
{[%clk 0:00:23.1]} 43... Rc2 {[%clk 0:00:03.1]} 44. Bb1 {[%clk 0:00:11.8]} 44...
Rc3+ {[%clk 0:00:03.5]} 45. Ne3 {[%clk 0:00:12.1]} 45... Kxf7 {[%clk 0:00:03.5]}
46. Kf4 {[%clk 0:00:12.7]} 46... Ne6+ {[%clk 0:00:03.3]} 47. Ke5 {[%clk
0:00:12.3]} 47... Ra3 {[%clk 0:00:02.5]} 48. Bc2 {[%clk 0:00:11.1]} 48... Nc5
{[%clk 0:00:02.4]} 49. f4 {[%clk 0:00:09.8]} 49... Nd3+ {[%clk 0:00:02.3]} 50.
Kd4 {[%clk 0:00:09.7]} 50... Nb4 {[%clk 0:00:02.2]} 51. Bd1 {[%clk 0:00:08.9]}
51... Nc6+ {[%clk 0:00:02.5]} 52. Kc5 {[%clk 0:00:08.8]} 52... Rxe3 {[%clk
0:00:02.8]} 53. Kxc6 {[%clk 0:00:08.7]} 53... Rxe4 {[%clk 0:00:03.3]} 54. Bb3+
{[%clk 0:00:08.5]} 54... Kf6 {[%clk 0:00:03.4]} 55. Bc2 {[%clk 0:00:08.9]} 55...
Rxf4 {[%clk 0:00:03.8]} 56. Kd5 {[%clk 0:00:09.7]} 56... g5 {[%clk 0:00:03.8]}
57. Bd3 {[%clk 0:00:10.6]} 57... g4 {[%clk 0:00:04.2]} 58. Be2 {[%clk
0:00:11.2]} 58... g3 {[%clk 0:00:04.7]} 59. Bd3 {[%clk 0:00:11.2]} 59... Rf2
{[%clk 0:00:04.9]} 60. Be4 {[%clk 0:00:12.1]} 60... g2 {[%clk 0:00:05.1]} 61.
Bxg2 {[%clk 0:00:12.7]} 61... Rxg2 {[%clk 0:00:06]} 62. Ke4 {[%clk 0:00:13.2]}
62... Rg4+ {[%clk 0:00:06.1]} 63. Kf3 {[%clk 0:00:14.1]} 63... Ra4 {[%clk
0:00:06.3]} 64. Ke3 {[%clk 0:00:15]} 64... Ke5 {[%clk 0:00:06.9]} 65. Kd3 {[%clk
0:00:15.9]} 65... Rh4 {[%clk 0:00:06.7]} 66. Kc3 {[%clk 0:00:16.8]} 66... Kd5
{[%clk 0:00:06.6]} 67. Kd2 {[%clk 0:00:17.7]} 67... Kd4 {[%clk 0:00:06.2]} 68.
Ke2 {[%clk 0:00:18.6]} 68... Rh3 {[%clk 0:00:06.7]} 69. Kf2 {[%clk 0:00:19.5]}
69... Ra3 {[%clk 0:00:06.5]} 70. Kg2 {[%clk 0:00:20.4]} 70... Ke4 {[%clk
0:00:06.6]} 71. Kf2 {[%clk 0:00:21.3]} 71... Rb3 {[%clk 0:00:06.7]} 72. Ke1
{[%clk 0:00:22.2]} 72... Rb2 {[%clk 0:00:06.4]} 73. Kd1 {[%clk 0:00:22.4]} 73...
Kd3 {[%clk 0:00:07]} 74. Kc1 {[%clk 0:00:23.3]} 74... Rh2 {[%clk 0:00:07.2]} 75.
Kb1 {[%clk 0:00:23.8]} 75... Kc3 {[%clk 0:00:07.8]} 76. Kc1 {[%clk 0:00:24.7]}
76... Rh1# {[%clk 0:00:07.9]} 0-1

[Event "Early-Titled-Tuesday-Blitz-September-12-2023"]
[Site "Chess.com"]
[Date "2023.09.12"]
[Round "8"]
[White "Sanan_Sjugirov"]
[Black "amintabatabaei"]
[Result "1/2-1/2"]
[WhiteElo "2933"]
[BlackElo "3051"]
[TimeControl "180+1"]
[EndTime "9:29:58 PDT"]
[Termination "Game drawn by repetition"]

1. e4 {[%clk 0:03:00.9]} 1... e5 {[%clk 0:02:59.7]} 2. Nf3 {[%clk 0:03:00.6]}
2... Nc6 {[%clk 0:03:00.4]} 3. Bc4 {[%clk 0:02:59.6]} 3... Nf6 {[%clk
0:03:00.1]} 4. d3 {[%clk 0:02:59.9]} 4... Bc5 {[%clk 0:02:59.1]} 5. a4 {[%clk
0:02:59.2]} 5... d6 {[%clk 0:02:57.3]} 6. O-O {[%clk 0:02:57.9]} 6... O-O {[%clk
0:02:55.4]} 7. c3 {[%clk 0:02:55.8]} 7... a6 {[%clk 0:02:55.3]} 8. h3 {[%clk
0:02:53.4]} 8... h6 {[%clk 0:02:51.8]} 9. a5 {[%clk 0:02:48.3]} 9... Re8 {[%clk
0:02:32.6]} 10. Be3 {[%clk 0:02:46.1]} 10... Bxe3 {[%clk 0:02:25.8]} 11. fxe3
{[%clk 0:02:47]} 11... Be6 {[%clk 0:02:17.2]} 12. Bxe6 {[%clk 0:02:45.1]} 12...
Rxe6 {[%clk 0:02:16.4]} 13. Nbd2 {[%clk 0:02:41.3]} 13... d5 {[%clk 0:02:09]}
14. exd5 {[%clk 0:02:32.2]} 14... Qxd5 {[%clk 0:02:09.9]} 15. Qc2 {[%clk
0:02:06]} 15... Rd8 {[%clk 0:01:59.5]} 16. d4 {[%clk 0:02:06]} 16... exd4 {[%clk
0:01:36.7]} 17. exd4 {[%clk 0:02:06.9]} 17... Re2 {[%clk 0:01:13.4]} 18. b4
{[%clk 0:01:55.8]} 18... Rde8 {[%clk 0:01:10.5]} 19. Rae1 {[%clk 0:01:50]} 19...
Nh5 {[%clk 0:00:47.3]} 20. Rxe2 {[%clk 0:01:30.3]} 20... Rxe2 {[%clk 0:00:48.2]}
21. Re1 {[%clk 0:01:30.2]} 21... Qe6 {[%clk 0:00:40.5]} 22. Rxe2 {[%clk
0:01:23.8]} 22... Qxe2 {[%clk 0:00:41.4]} 23. Qe4 {[%clk 0:01:24.3]} 23... Qxe4
{[%clk 0:00:27.5]} 24. Nxe4 {[%clk 0:01:25.2]} 24... Nf4 {[%clk 0:00:27.8]} 25.
Kf2 {[%clk 0:01:18.5]} 25... f6 {[%clk 0:00:27.2]} 26. h4 {[%clk 0:01:08.4]}
26... Kf7 {[%clk 0:00:26.4]} 27. g4 {[%clk 0:00:52.3]} 27... h5 {[%clk
0:00:16.6]} 28. gxh5 {[%clk 0:00:48.4]} 28... Nxh5 {[%clk 0:00:17.5]} 29. Ke3
{[%clk 0:00:48.1]} 29... Nd8 {[%clk 0:00:15.2]} 30. d5 {[%clk 0:00:45.5]} 30...
f5 {[%clk 0:00:13.7]} 31. Neg5+ {[%clk 0:00:42.5]} 31... Ke7 {[%clk 0:00:13.3]}
32. c4 {[%clk 0:00:42.4]} 32... Nf6 {[%clk 0:00:12.8]} 33. Kf4 {[%clk 0:00:42]}
33... c6 {[%clk 0:00:11.6]} 34. Ke5 {[%clk 0:00:37.6]} 34... cxd5 {[%clk
0:00:09.7]} 35. cxd5 {[%clk 0:00:38.5]} 35... Ng4+ {[%clk 0:00:06]} 36. Kxf5
{[%clk 0:00:37.3]} 36... Ne3+ {[%clk 0:00:06.7]} 37. Ke5 {[%clk 0:00:31.9]}
37... Nc2 {[%clk 0:00:04.5]} 38. Nd4 {[%clk 0:00:26.9]} 38... Nxb4 {[%clk
0:00:04.3]} 39. Nf5+ {[%clk 0:00:27.7]} 39... Kf8 {[%clk 0:00:04.1]} 40. Kd6
{[%clk 0:00:21]} 40... g6 {[%clk 0:00:02.5]} 41. Nd4 {[%clk 0:00:17.4]} 41...
Nf7+ {[%clk 0:00:01.9]} 42. Nxf7 {[%clk 0:00:10.1]} 42... Kxf7 {[%clk
0:00:02.8]} 43. Kc5 {[%clk 0:00:11]} 43... Nd3+ {[%clk 0:00:03.3]} 44. Kb6
{[%clk 0:00:11.8]} 44... Ke7 {[%clk 0:00:02.2]} 45. Ne6 {[%clk 0:00:07.2]} 45...
Kd6 {[%clk 0:00:01.9]} 46. Nf8 {[%clk 0:00:07]} 46... Ne5 {[%clk 0:00:01.8]} 47.
Kxb7 {[%clk 0:00:06.8]} 47... Kxd5 {[%clk 0:00:01.9]} 48. Kxa6 {[%clk
0:00:06.9]} 48... Kc6 {[%clk 0:00:02.8]} 49. Ka7 {[%clk 0:00:07.2]} 49... Kc7
{[%clk 0:00:03.1]} 50. a6 {[%clk 0:00:06.9]} 50... Nc6+ {[%clk 0:00:03.3]} 51.
Ka8 {[%clk 0:00:07.5]} 51... Ne7 {[%clk 0:00:03.9]} 52. Ne6+ {[%clk 0:00:06.4]}
52... Kc8 {[%clk 0:00:03.9]} 53. Ka7 {[%clk 0:00:06.2]} 53... Nd5 {[%clk
0:00:04.5]} 54. Ng5 {[%clk 0:00:05.5]} 54... Kc7 {[%clk 0:00:04.8]} 55. Ne4
{[%clk 0:00:04.8]} 55... Ne7 {[%clk 0:00:05]} 56. Ng3 {[%clk 0:00:04]} 56...
Nc8+ {[%clk 0:00:05.2]} 57. Ka8 {[%clk 0:00:04.3]} 57... Nb6+ {[%clk 0:00:05.4]}
58. Ka7 {[%clk 0:00:04.8]} 58... Nc8+ {[%clk 0:00:05.8]} 59. Ka8 {[%clk
0:00:05.6]} 59... Nb6+ {[%clk 0:00:06.1]} 60. Ka7 {[%clk 0:00:06.2]} 60... Nd5
{[%clk 0:00:02.5]} 61. Ne4 {[%clk 0:00:05.2]} 61... Ne7 {[%clk 0:00:02.8]} 62.
Ka8 {[%clk 0:00:02.4]} 62... Nc8 {[%clk 0:00:03.1]} 63. Nc3 {[%clk 0:00:02]}
63... Nb6+ {[%clk 0:00:03.3]} 64. Ka7 {[%clk 0:00:02.6]} 64... Nc8+ {[%clk
0:00:04.2]} 65. Ka8 {[%clk 0:00:03.1]} 65... Nb6+ {[%clk 0:00:04.7]} 66. Ka7
{[%clk 0:00:03.8]} 66... Nc8+ {[%clk 0:00:05.6]} 67. Ka8 {[%clk 0:00:04.5]}
1/2-1/2

[Event "Early-Titled-Tuesday-Blitz-September-12-2023"]
[Site "Chess.com"]
[Date "2023.09.12"]
[Round "8"]
[White "EvgenyBurmakin"]
[Black "Boxerandchessplayer"]
[Result "1/2-1/2"]
[WhiteElo "2267"]
[BlackElo "2117"]
[TimeControl "180+1"]
[EndTime "9:29:59 PDT"]
[Termination "Game drawn - insufficient material"]

1. e4 {[%clk 0:03:00.9]} 1... e6 {[%clk 0:03:00.9]} 2. d4 {[%clk 0:03:00.6]}
2... d5 {[%clk 0:02:58.5]} 3. Nd2 {[%clk 0:03:01.1]} 3... dxe4 {[%clk
0:02:58.7]} 4. Nxe4 {[%clk 0:03:02]} 4... Nd7 {[%clk 0:02:59.1]} 5. Nf3 {[%clk
0:03:00.3]} 5... Ngf6 {[%clk 0:02:59.6]} 6. Nxf6+ {[%clk 0:02:59.8]} 6... Nxf6
{[%clk 0:02:59.5]} 7. Bd3 {[%clk 0:02:59.9]} 7... Be7 {[%clk 0:02:59.7]} 8. Qe2
{[%clk 0:02:59.8]} 8... O-O {[%clk 0:02:59.4]} 9. Bg5 {[%clk 0:03:00.4]} 9... g6
{[%clk 0:02:41.9]} 10. O-O-O {[%clk 0:02:51.5]} 10... b6 {[%clk 0:02:39.7]} 11.
h4 {[%clk 0:02:37]} 11... Bb7 {[%clk 0:02:36.9]} 12. Bh6 {[%clk 0:02:15.5]}
12... Re8 {[%clk 0:02:36]} 13. h5 {[%clk 0:02:15.1]} 13... Bxf3 {[%clk
0:01:13.8]} 14. Qxf3 {[%clk 0:02:08.6]} 14... Qd5 {[%clk 0:01:13.7]} 15. Qxd5
{[%clk 0:01:20.2]} 15... Nxd5 {[%clk 0:01:12.8]} 16. Rh3 {[%clk 0:01:07.7]}
16... Bf8 {[%clk 0:01:09.3]} 17. Bd2 {[%clk 0:01:03.5]} 17... Bg7 {[%clk
0:01:04.5]} 18. c3 {[%clk 0:01:03.5]} 18... a6 {[%clk 0:00:41.7]} 19. Rdh1
{[%clk 0:01:01.7]} 19... b5 {[%clk 0:00:37.2]} 20. hxg6 {[%clk 0:00:53.9]} 20...
hxg6 {[%clk 0:00:36.4]} 21. Re1 {[%clk 0:00:45]} 21... Red8 {[%clk 0:00:35.6]}
22. Rh4 {[%clk 0:00:42.4]} 22... c5 {[%clk 0:00:15.5]} 23. dxc5 {[%clk
0:00:26.2]} 23... Nxc3 {[%clk 0:00:15.3]} 24. Bxc3 {[%clk 0:00:21.9]} 24... Bxc3
{[%clk 0:00:14.6]} 25. bxc3 {[%clk 0:00:20.5]} 25... Rxd3 {[%clk 0:00:14.6]} 26.
Reh1 {[%clk 0:00:17.2]} 26... Kg7 {[%clk 0:00:14.3]} 27. Rh7+ {[%clk 0:00:15.6]}
27... Kf6 {[%clk 0:00:14.7]} 28. Kc2 {[%clk 0:00:16]} 28... Rd5 {[%clk
0:00:14.4]} 29. R1h3 {[%clk 0:00:15.4]} 29... Rxc5 {[%clk 0:00:14.1]} 30. Rd3
{[%clk 0:00:13.9]} 30... Rac8 {[%clk 0:00:12.1]} 31. Rd7 {[%clk 0:00:12.3]}
31... R8c7 {[%clk 0:00:12.1]} 32. Rxc7 {[%clk 0:00:09.4]} 32... Rxc7 {[%clk
0:00:12.1]} 33. Kd3 {[%clk 0:00:09.5]} 33... Ke5 {[%clk 0:00:12]} 34. g3 {[%clk
0:00:08.3]} 34... Kd5 {[%clk 0:00:11.7]} 35. Rh8 {[%clk 0:00:06.6]} 35... e5
{[%clk 0:00:06.2]} 36. Rd8+ {[%clk 0:00:06.3]} 36... Ke6 {[%clk 0:00:06.7]} 37.
Ra8 {[%clk 0:00:06.1]} 37... Rc6 {[%clk 0:00:07]} 38. g4 {[%clk 0:00:06.4]}
38... Kf6 {[%clk 0:00:06.6]} 39. Ra7 {[%clk 0:00:04.2]} 39... Kg5 {[%clk
0:00:03.6]} 40. Rxf7 {[%clk 0:00:03.2]} 40... Kxg4 {[%clk 0:00:04.3]} 41. Kd2
{[%clk 0:00:01.6]} 41... g5 {[%clk 0:00:04.2]} 42. Kd3 {[%clk 0:00:01.8]} 42...
Rc4 {[%clk 0:00:02.8]} 43. f3+ {[%clk 0:00:02.2]} 43... Kg3 {[%clk 0:00:02.2]}
44. Rf5 {[%clk 0:00:01.6]} 44... g4 {[%clk 0:00:01.6]} 45. fxg4 {[%clk
0:00:01.2]} 45... Kxg4 {[%clk 0:00:01.8]} 46. Rxe5 {[%clk 0:00:01.8]} 46... Kf4
{[%clk 0:00:02.5]} 47. Re6 {[%clk 0:00:02.3]} 47... Ra4 {[%clk 0:00:02.4]} 48.
Rb6 {[%clk 0:00:02.7]} 48... Rxa2 {[%clk 0:00:02.4]} 49. Rd6 {[%clk 0:00:03]}
49... Ke5 {[%clk 0:00:02.5]} 50. Rd4 {[%clk 0:00:03.2]} 50... Ra1 {[%clk
0:00:02.6]} 51. Rh4 {[%clk 0:00:03.5]} 51... Rd1+ {[%clk 0:00:01.9]} 52. Kc2
{[%clk 0:00:03.2]} 52... Rd6 {[%clk 0:00:02.6]} 53. Rh5+ {[%clk 0:00:03.6]}
53... Ke6 {[%clk 0:00:03.2]} 54. Kb3 {[%clk 0:00:03.9]} 54... Rc6 {[%clk
0:00:03.2]} 55. Rg5 {[%clk 0:00:04]} 55... Kd6 {[%clk 0:00:03.3]} 56. Rh5 {[%clk
0:00:03.5]} 56... Rc5 {[%clk 0:00:03.4]} 57. Rh6+ {[%clk 0:00:03.5]} 57... Kc7
{[%clk 0:00:02.7]} 58. Rxa6 {[%clk 0:00:04.4]} 58... Rc6 {[%clk 0:00:03]} 59.
Rxc6+ {[%clk 0:00:04.2]} 59... Kxc6 {[%clk 0:00:03.4]} 60. c4 {[%clk 0:00:05.1]}
60... Kc5 {[%clk 0:00:02.7]} 61. cxb5 {[%clk 0:00:05.3]} 61... Kxb5 {[%clk
0:00:03.6]} 1/2-1/2